bitfinex/quotes_BTCUSD_20251029
["timestamp","ask_amount","ask_price","bid_price","bid_amount"]
[1761720159841,4.832e-05,113200.0,113190.0,0.60023064]
[1761720168114,4.832e-05,113200.0,113190.0,0.22878405]
[1761720168305,4.832e-05,113200.0,113190.0,0.60023064]
[1761720182467,4.832e-05,113200.0,113190.0,0.22878405]
[1761720182670,4.832e-05,113200.0,113190.0,0.60023064]
[1761720183303,4.832e-05,113200.0,113190.0,0.22878405]
[1761720183520,0.37149491,113200.0,113190.0,0.22878405]
[1761720183736,0.45875571,113200.0,113190.0,0.22878405]
[1761720183942,0.08730912,113200.0,113190.0,0.22878405]
[1761720184150,0.06826119,113200.0,113190.0,0.22878405]
[1761720186254,0.00832785,113200.0,113190.0,0.22878405]
[1761720186862,4.832e-05,113200.0,113190.0,0.60023064]
[1761720192084,4.832e-05,113200.0,113190.0,0.22878405]
[1761720192294,4.832e-05,113200.0,113190.0,0.60023064]
[1761720197694,4.832e-05,113200.0,113190.0,0.22878405]
[1761720197901,4.832e-05,113200.0,113190.0,0.60023064]
[1761720200670,4.832e-05,113200.0,113190.0,0.22878405]
[1761720202564,4.832e-05,113200.0,113190.0,0.60023064]
[1761720202799,4.832e-05,113200.0,113190.0,0.22878405]
[1761720202999,4.832e-05,113200.0,113190.0,0.60023064]
[1761720203523,4.832e-05,113200.0,113190.0,0.22878405]
[1761720203730,4.832e-05,113200.0,113190.0,0.60023064]
[1761720211309,4.832e-05,113200.0,113190.0,0.22878405]
[1761720215613,4.832e-05,113200.0,113190.0,0.60011595]
[1761720217856,4.832e-05,113200.0,113190.0,0.22878405]
[1761720226567,4.832e-05,113200.0,113190.0,0.60011595]
[1761720227156,4.832e-05,113200.0,113190.0,0.22878405]
[1761720227360,4.832e-05,113200.0,113190.0,0.60011595]
[1761720234795,4.832e-05,113200.0,113190.0,0.97144785]
[1761720235231,4.832e-05,113200.0,113190.0,0.60011595]
[1761720235441,4.832e-05,113200.0,113190.0,0.62666498]
[1761720244504,4.832e-05,113200.0,113190.0,0.99799688]
[1761720245016,4.832e-05,113200.0,113190.0,1.33799688]
[1761720245161,4.832e-05,113200.0,113190.0,1.42781589]
[1761720245374,4.832e-05,113200.0,113190.0,1.33799688]
[1761720247318,4.832e-05,113200.0,113190.0,0.96666498]
[1761720255778,0.00828213,113220.0,113210.0,0.17666283]
[1761720255978,0.21139331,113230.0,113220.0,0.17664723]
[1761720256111,0.32045397,113230.0,113220.0,0.17664723]
[1761720256324,0.3395019,113230.0,113220.0,0.17664723]
[1761720256723,0.3395019,113230.0,113210.0,0.21324283]
[1761720256917,0.3395019,113230.0,113220.0,0.17664723]
[1761720257145,0.3395019,113230.0,113220.0,0.17564723]
[1761720257592,0.80065281,113230.0,113220.0,0.17564723]
[1761720257793,0.7108338,113230.0,113220.0,0.17564723]
[1761720257944,0.7118338,113230.0,113220.0,0.17564723]
[1761720260080,0.7108338,113230.0,113220.0,0.17564723]
[1761720260871,0.7118338,113230.0,113220.0,0.17564723]
[1761720261609,0.71204575,113230.0,113220.0,0.17564723]
[1761720261823,0.71204575,113230.0,113220.0,0.17364723]
[1761720263021,0.71604575,113230.0,113220.0,0.17364723]
[1761720263252,0.17664723,113220.0,113210.0,0.18914283]
[1761720263467,0.85133977,113220.0,113210.0,0.17666283]
[1761720263674,0.8677577,113220.0,113210.0,0.17666283]
[1761720265390,0.8677577,113220.0,113210.0,0.17766283]
[1761720265816,0.8916053,113220.0,113210.0,0.17766283]
[1761720268770,0.8942353,113220.0,113210.0,0.17766283]
[1761720269380,0.91080675,113220.0,113210.0,0.17766283]
[1761720272176,0.90823535,113220.0,113210.0,0.17766283]
[1761720273498,0.90822491,113220.0,113210.0,0.17766283]
[1761720276110,0.90822491,113220.0,113210.0,0.001]
[1761720276270,0.91085491,113220.0,113210.0,0.001]
[1761720276472,0.91085491,113220.0,113210.0,0.17766283]
[1761720278346,0.94256809,113220.0,113210.0,0.001]
[1761720279175,0.94256809,113220.0,113210.0,0.17766283]
[1761720279395,0.93993809,113220.0,113210.0,0.17766283]
[1761720279549,0.93993809,113220.0,113210.0,0.17666283]
[1761720279723,0.93993809,113220.0,113200.0,0.19797812]
[1761720280119,0.93993809,113220.0,113200.0,0.22200812]
[1761720282302,0.94256809,113220.0,113200.0,0.22200812]
[1761720284308,0.91771501,113220.0,113200.0,0.22200812]
[1761720284518,0.91771501,113220.0,113210.0,0.17666283]
[1761720284937,0.94256956,113220.0,113210.0,0.17666283]
[1761720285117,0.93428471,113220.0,113210.0,0.17666283]
[1761720285318,0.91771501,113220.0,113210.0,0.17666283]
[1761720285530,0.91771501,113220.0,113200.0,0.22200812]
[1761720286291,0.94257026,113220.0,113200.0,0.22200812]
[1761720286496,0.92600009,113220.0,113200.0,0.22200812]
[1761720286700,0.91771501,113220.0,113200.0,0.22200812]
[1761720287726,0.94257083,113220.0,113200.0,0.22200812]
[1761720289680,0.93994083,113220.0,113210.0,0.17666283]
[1761720289856,0.93994083,113220.0,113200.0,0.22200812]
[1761720291931,0.93994083,113220.0,113210.0,0.17666283]
[1761720292387,0.56861937,113220.0,113210.0,0.17666283]
[1761720292587,1.02332758,113220.0,113210.0,0.19291283]
[1761720293546,1.02332758,113220.0,113210.0,0.17666283]
[1761720294720,1.02332758,113220.0,113210.0,0.19291283]
[1761720298497,0.65200612,113220.0,113210.0,0.19291283]
[1761720298706,1.02332758,113220.0,113210.0,0.19291283]
[1761720299762,1.02332758,113220.0,113210.0,0.02839]
[1761720299963,0.17666283,113210.0,113200.0,0.62288026]
[1761720300183,0.21811491,113210.0,113200.0,0.62288026]
[1761720300387,0.03667939,113210.0,113200.0,0.63913026]
[1761720300602,0.01758867,113210.0,113200.0,0.63913026]
[1761720300881,0.01758867,113210.0,113200.0,0.2678088]
[1761720301095,0.01758867,113210.0,113200.0,0.2698088]
[1761720301300,0.04145208,113210.0,113200.0,0.2698088]
[1761720301720,0.04145208,113210.0,113200.0,0.29635863]
[1761720305057,0.04145208,113210.0,113200.0,0.66768009]
[1761720307350,0.0605428,113210.0,113200.0,0.66768009]
[1761720309197,0.0512394,113210.0,113200.0,0.66768009]
[1761720313218,0.00828527,113210.0,113200.0,0.66768009]
[1761720314146,0.34942459,113220.0,113210.0,0.17666283]
[1761720314376,0.36600667,113220.0,113210.0,0.60080429]
[1761720314606,0.36600667,113220.0,113210.0,0.22948283]
[1761720314812,0.36600667,113220.0,113210.0,0.60080429]
[1761720315508,0.36600667,113220.0,113210.0,0.22948283]
[1761720316068,0.05124517,113220.0,113210.0,0.60080429]
[1761720316496,0.03215445,113220.0,113210.0,0.62735248]
[1761720316697,0.00829104,113220.0,113210.0,0.62735248]
[1761720317059,0.00829104,113220.0,113210.0,0.25603102]
[1761720317265,0.26247823,113230.0,113220.0,0.17664723]
[1761720317505,0.37150035,113230.0,113220.0,0.20545723]
[1761720319361,0.37150035,113230.0,113220.0,0.22946723]
[1761720321414,0.33978717,113230.0,113220.0,0.22946723]
[1761720322700,0.33978717,113230.0,113220.0,0.20545723]
[1761720323563,0.33978717,113230.0,113220.0,0.22946723]
[1761720324576,0.71110863,113230.0,113220.0,0.22946723]
[1761720326713,0.33978717,113230.0,113220.0,0.22946723]
[1761720327312,0.32321406,113230.0,113220.0,0.22946723]
[1761720327729,0.32058406,113230.0,113220.0,0.22946723]
[1761720328137,0.14394998,113230.0,113220.0,0.22946723]
[1761720328342,0.00854684,113230.0,113220.0,0.97211015]
[1761720328748,0.00026029,113230.0,113220.0,0.62733345]
[1761720329775,0.00026029,113230.0,113220.0,0.63033345]
[1761720329980,0.5075065,113240.0,113230.0,0.20544163]
[1761720330193,0.59732551,113240.0,113230.0,0.22945163]
[1761720330395,0.60656164,113240.0,113230.0,0.22945163]
[1761720330593,0.30567047,113240.0,113230.0,0.22945163]
[1761720330794,0.30567047,113240.0,113230.0,0.25599639]
[1761720331421,0.30567047,113240.0,113230.0,0.25799639]
[1761720333212,0.30830047,113240.0,113230.0,0.23398639]
[1761720333829,0.30830047,113240.0,113230.0,0.62931785]
[1761720334031,0.30567047,113240.0,113230.0,0.62931785]
[1761720335338,0.30567047,113240.0,113230.0,0.25799639]
[1761720337535,0.30830047,113240.0,113230.0,0.25799639]
[1761720337729,0.02758029,113240.0,113230.0,0.62910799]
[1761720337872,0.00848957,113240.0,113230.0,0.62910799]
[1761720338074,0.00021191,113240.0,113230.0,0.62910799]
[1761720340470,0.00021191,113240.0,113230.0,0.718927]
[1761720340879,0.00021191,113240.0,113230.0,1.058927]
[1761720341307,0.00021191,113240.0,113230.0,0.6878154]
[1761720341554,0.00021191,113240.0,113230.0,1.058927]
[1761720341773,0.00021191,113240.0,113230.0,1.14874601]
[1761720342216,0.00021191,113240.0,113230.0,1.18492829]
[1761720343368,0.00021191,113240.0,113230.0,1.55603989]
[1761720343801,0.00021191,113240.0,113230.0,1.18492829]
[1761720344013,0.00021191,113240.0,113230.0,1.55603989]
[1761720344258,0.00021191,113240.0,113230.0,1.18492829]
[1761720353900,0.00021191,113240.0,113230.0,1.55603989]
[1761720363023,1e-08,113240.0,113230.0,1.55603989]
[1761720364169,1e-08,113240.0,113230.0,1.70233989]
[1761720367155,1e-08,113240.0,113230.0,1.24140928]
[1761720367402,0.00826218,113240.0,113230.0,1.24140928]
[1761720372109,0.06874009,113280.0,113270.0,0.17656925]
[1761720372380,0.10927918,113280.0,113270.0,0.19239925]
[1761720372603,0.21972276,113280.0,113270.0,0.19239925]
[1761720373036,0.29249006,113280.0,113270.0,0.19239925]
[1761720373252,0.29349006,113280.0,113270.0,0.19239925]
[1761720373481,0.10810871,113280.0,113270.0,0.19239925]
[1761720373706,0.11410871,113280.0,113270.0,0.19239925]
[1761720373925,0.11410871,113280.0,113270.0,0.20462925]
[1761720375077,0.10810871,113280.0,113270.0,0.20462925]
[1761720375282,0.04416909,113280.0,113270.0,0.20462925]
[1761720375494,0.04716909,113280.0,113270.0,0.20462925]
[1761720375908,0.04616909,113280.0,113270.0,0.20462925]
[1761720376119,0.04616909,113280.0,113270.0,0.22904925]
[1761720376338,0.04453909,113280.0,113270.0,0.22904925]
[1761720377660,0.04538639,113280.0,113270.0,0.22904925]
[1761720379471,0.02153908,113280.0,113270.0,0.60016085]
[1761720379691,0.00497542,113280.0,113270.0,0.60016085]
[1761720380127,0.00497542,113280.0,113270.0,0.67905842]
[1761720380597,0.00397542,113280.0,113270.0,0.60016085]
[1761720382064,0.00097542,113280.0,113270.0,0.60016085]
[1761720382332,0.00097542,113280.0,113270.0,0.60116085]
[1761720382889,0.00097542,113280.0,113270.0,0.60077003]
[1761720384247,0.00925193,113280.0,113270.0,0.60077003]
[1761720388752,0.00925193,113280.0,113270.0,0.23004925]
[1761720388979,0.00925193,113280.0,113270.0,0.60077003]
[1761720390009,0.00925193,113280.0,113270.0,0.23004925]
[1761720390216,0.027831,113280.0,113270.0,0.23004925]
[1761720392383,0.20701467,113280.0,113270.0,0.20562925]
[1761720392602,0.20701467,113280.0,113270.0,0.001]
[1761720392881,0.20964467,113280.0,113270.0,0.17756925]
[1761720393102,0.20701467,113280.0,113270.0,0.17756925]
[1761720393726,0.29683368,113280.0,113270.0,0.001]
[1761720393904,0.31853236,113280.0,113270.0,0.001]
[1761720394142,0.68925314,113280.0,113270.0,0.001]
[1761720394762,0.17656925,113270.0,113260.0,0.18881484]
[1761720394967,0.23698592,113270.0,113260.0,0.20464484]
[1761720395171,0.2560546,113270.0,113260.0,0.20464484]
[1761720395383,0.02734519,113270.0,113260.0,0.20464484]
[1761720395582,0.00827651,113270.0,113260.0,0.22906484]
[1761720395786,0.31242506,113280.0,113260.0,0.22906484]
[1761720396006,0.31505506,113280.0,113270.0,0.01583]
[1761720396214,0.29647599,113280.0,113270.0,0.01583]
[1761720396626,0.29647599,113280.0,113270.0,0.19239925]
[1761720398123,0.29747599,113280.0,113270.0,0.19239925]
[1761720400290,0.00063553,113270.0,113260.0,0.5841281]
[1761720400756,0.17983478,113270.0,113260.0,0.20434484]
[1761720400964,0.18811129,113270.0,113260.0,0.20434484]
[1761720401807,0.18811129,113270.0,113260.0,0.20534484]
[1761720403132,0.01154204,113270.0,113260.0,0.20534484]
[1761720404435,0.01153481,113270.0,113260.0,0.20534484]
[1761720404645,0.18810406,113270.0,113260.0,0.20534484]
[1761720405309,0.17656925,113270.0,113260.0,0.20534484]
[1761720405544,0.63777903,113280.0,113260.0,0.20534484]
[1761720405762,0.63777903,113280.0,113270.0,0.17656925]
[1761720406413,0.63514903,113280.0,113270.0,0.17656925]
[1761720406639,0.63514903,113280.0,113270.0,0.19209925]
[1761720407551,0.66268562,113280.0,113270.0,0.19209925]
[1761720407751,0.65520562,113280.0,113270.0,0.19209925]
[1761720407962,0.65620562,113280.0,113270.0,0.19209925]
[1761720410221,0.13642428,113280.0,113270.0,0.20375925]
[1761720410465,0.02753659,113280.0,113270.0,0.59721251]
[1761720410676,0.001,113280.0,113270.0,0.59721251]
[1761720411260,0.00021179,113280.0,113270.0,0.59721251]
[1761720411628,0.00021179,113280.0,113270.0,0.60121251]
[1761720411836,0.00021179,113280.0,113270.0,0.59821251]
[1761720415711,0.00021179,113280.0,113270.0,0.22731925]
[1761720415936,0.17676546,113280.0,113270.0,0.20475925]
[1761720416153,0.54765872,113280.0,113270.0,0.17756925]
[1761720416356,0.5667274,113280.0,113270.0,0.17756925]
[1761720416979,0.65654641,113280.0,113270.0,0.17756925]
[1761720417188,0.65654641,113280.0,113270.0,0.17656925]
[1761720417391,0.66582017,113280.0,113270.0,0.17656925]
[1761720418927,0.11837324,113280.0,113270.0,0.22631925]
[1761720419134,0.09930456,113280.0,113270.0,0.22631925]
[1761720419702,0.27585823,113280.0,113270.0,0.22631925]
[1761720419913,0.29492691,113280.0,113270.0,0.22631925]
[1761720420115,0.29493012,113280.0,113270.0,0.20375925]
[1761720420344,0.29493012,113280.0,113270.0,0.18822925]
[1761720420535,0.32146577,113280.0,113270.0,0.18822925]
[1761720422134,0.32146577,113280.0,113270.0,0.20375925]
[1761720423913,0.69235903,113280.0,113270.0,0.20375925]
[1761720424322,0.32146577,113280.0,113270.0,0.20375925]
[1761720427331,0.1449121,113280.0,113270.0,0.20375925]
[1761720427551,0.12584342,113280.0,113270.0,0.22630925]
[1761720427762,0.09930777,113280.0,113270.0,0.22630925]
[1761720427963,0.12584342,113280.0,113270.0,0.59720251]
[1761720428373,0.09930777,113280.0,113270.0,0.59720251]
[1761720431793,0.09930777,113280.0,113270.0,0.62373809]
[1761720432219,0.09930777,113280.0,113270.0,0.67677586]
[1761720432464,0.09930777,113280.0,113270.0,0.62373809]
[1761720435729,0.09930777,113280.0,113270.0,0.25284483]
[1761720437979,0.00948876,113280.0,113270.0,0.62373809]
[1761720439301,0.00949335,113280.0,113270.0,0.62373809]
[1761720439725,0.00849335,113280.0,113270.0,0.62373809]
[1761720439935,0.00849335,113280.0,113270.0,0.7135571]
[1761720440141,0.00849335,113280.0,113270.0,0.7145571]
[1761720440387,0.00849335,113280.0,113270.0,0.7135571]
[1761720440909,0.00849335,113280.0,113270.0,0.7155571]
[1761720441719,0.00849335,113280.0,113270.0,0.62573809]
[1761720441907,0.00021179,113280.0,113270.0,0.62573809]
[1761720442115,0.00021179,113280.0,113270.0,1.8335259]
[1761720442116,1e-08,113280.0,113270.0,1.8335259]
[1761720442661,1e-08,113280.0,113270.0,2.95620567]
[1761720442782,1e-08,113280.0,113270.0,1.94334489]
[1761720442988,0.0002,113310.0,113300.0,0.34]
[1761720443189,0.0002,113320.0,113310.0,0.51650692]
[1761720443398,0.0003449,113320.0,113310.0,1.39846245]
[1761720443601,0.00119175,113320.0,113310.0,1.39846245]
[1761720443823,0.00119175,113320.0,113310.0,1.4918171]
[1761720444698,0.00119175,113320.0,113310.0,1.4968171]
[1761720445485,0.00119175,113320.0,113310.0,1.4978171]
[1761720454327,0.00940483,113320.0,113310.0,1.4978171]
[1761720457336,0.00940483,113320.0,113310.0,1.49687252]
[1761720457970,0.00940483,113320.0,113310.0,0.57639256]
[1761720458184,0.00940483,113320.0,113310.0,0.94681353]
[1761720459074,0.00940483,113320.0,113310.0,0.94581353]
[1761720460056,0.00940483,113320.0,113310.0,0.94081353]
[1761720460264,0.00940647,113320.0,113310.0,0.94081353]
[1761720460514,0.00940647,113320.0,113310.0,0.94481353]
[1761720462258,0.00960647,113320.0,113310.0,0.21165256]
[1761720462462,0.06527728,113320.0,113310.0,0.21165256]
[1761720462689,0.06507728,113320.0,113310.0,0.23476256]
[1761720462896,0.00940647,113320.0,113310.0,0.23476256]
[1761720463290,0.00940647,113320.0,113310.0,0.23176256]
[1761720463480,0.18609782,113320.0,113310.0,0.23076256]
[1761720463652,0.18609782,113320.0,113310.0,0.20865256]
[1761720464168,0.18609782,113320.0,113310.0,0.23176256]
[1761720464965,0.00940647,113320.0,113310.0,0.9726045]
[1761720465153,0.00940647,113320.0,113310.0,1.49224252]
[1761720466791,0.00940647,113320.0,113310.0,1.5284248]
[1761720468232,0.00119175,113320.0,113310.0,1.5284248]
[1761720469729,0.0002,113330.0,113320.0,0.51649135]
[1761720469934,0.0002,113330.0,113320.0,1.02791133]
[1761720470136,0.00844482,113330.0,113320.0,1.11485922]
[1761720471392,0.00944482,113330.0,113320.0,1.11485922]
[1761720472930,0.00844482,113330.0,113320.0,1.1413743]
[1761720473139,0.00844482,113330.0,113320.0,1.1453743]
[1761720473749,0.00844482,113330.0,113320.0,1.1463743]
[1761720475623,0.00865648,113330.0,113320.0,1.1463743]
[1761720477287,0.00865648,113330.0,113320.0,1.18255658]
[1761720477495,0.0002,113340.0,113330.0,1.25731771]
[1761720477702,0.0002,113340.0,113330.0,1.48813573]
[1761720478321,0.0002,113340.0,113330.0,1.50728334]
[1761720479971,0.0002,113340.0,113330.0,1.51028334]
[1761720480204,0.0002,113340.0,113330.0,1.51128334]
[1761720480423,0.0002,113340.0,113330.0,1.54746562]
[1761720483074,0.00041163,113340.0,113330.0,1.54746562]
[1761720483800,1e-08,113340.0,113330.0,1.69376562]
[1761720484450,1e-08,113340.0,113330.0,1.54746562]
[1761720485682,1e-08,113340.0,113330.0,1.08722564]
[1761720485894,1e-08,113340.0,113330.0,1.45764661]
[1761720489359,0.00824105,113340.0,113330.0,1.45764661]
[1761720489782,1e-08,113340.0,113330.0,1.45764661]
[1761720490196,0.0002,113350.0,113330.0,1.45764661]
[1761720490197,0.0002,113350.0,113340.0,0.55264248]
[1761720490406,0.0002,113350.0,113340.0,1.52534244]
[1761720490957,0.0002,113350.0,113340.0,1.52887694]
[1761720491385,0.0002,113350.0,113340.0,1.52534244]
[1761720493170,0.0002,113350.0,113340.0,1.52634244]
[1761720494154,0.0002,113350.0,113340.0,1.53538042]
[1761720494402,0.0002,113350.0,113340.0,1.53891492]
[1761720495741,0.0004116,113350.0,113340.0,1.52987694]
[1761720495951,0.0004116,113350.0,113340.0,1.67617694]
[1761720497981,0.0004116,113350.0,113340.0,1.68510033]
[1761720498918,0.0004116,113350.0,113340.0,1.67617694]
[1761720501596,0.0004116,113350.0,113340.0,1.68520031]
[1761720505788,0.0004116,113350.0,113340.0,1.5953813]
[1761720510761,0.0002,113360.0,113350.0,0.51644464]
[1761720510911,0.00034488,113360.0,113350.0,1.02964462]
[1761720513298,0.00134488,113360.0,113350.0,1.02964462]
[1761720514047,0.00034488,113360.0,113350.0,1.02964462]
[1761720514702,0.00034488,113360.0,113350.0,1.03064462]
[1761720515271,0.00034488,113360.0,113350.0,1.07678244]
[1761720515705,0.00034488,113360.0,113350.0,1.08278244]
[1761720516536,0.00055645,113360.0,113350.0,1.08278244]
[1761720517509,0.29925374,113400.0,113390.0,0.17638239]
[1761720517718,0.29925374,113400.0,113380.0,0.17639795]
[1761720517719,0.31594241,113400.0,113380.0,0.17639795]
[1761720517927,0.31614241,113400.0,113380.0,0.21285795]
[1761720518300,0.31614241,113400.0,113390.0,0.17638239]
[1761720518301,0.31594241,113400.0,113390.0,0.17638239]
[1761720518706,0.31614241,113400.0,113390.0,0.17638239]
[1761720519110,0.31714241,113400.0,113390.0,0.17638239]
[1761720519315,0.68729004,113400.0,113390.0,0.17638239]
[1761720519723,0.31714241,113400.0,113390.0,0.17638239]
[1761720519922,0.68729004,113400.0,113390.0,0.17638239]
[1761720521010,0.26077044,113400.0,113390.0,0.20368239]
[1761720521214,0.06077044,113400.0,113390.0,0.59825002]
[1761720521443,0.00134485,113400.0,113390.0,0.22810239]
[1761720522219,0.00114485,113400.0,113390.0,0.59825002]
[1761720523132,0.0019908,113400.0,113390.0,0.59825002]
[1761720523821,0.17835764,113400.0,113390.0,0.22810239]
[1761720524024,0.17835764,113400.0,113390.0,0.59825002]
[1761720524224,0.17855764,113400.0,113390.0,0.20368239]
[1761720525042,0.54870527,113400.0,113380.0,0.21285795]
[1761720525246,0.54785932,113400.0,113390.0,0.17638239]
[1761720525797,0.54685932,113400.0,113390.0,0.17638239]
[1761720526014,0.54705932,113400.0,113380.0,0.18843795]
[1761720526325,0.54805932,113400.0,113380.0,0.21285795]
[1761720526518,0.54705932,113400.0,113380.0,0.21285795]
[1761720526880,0.0002,113390.0,113380.0,0.22811795]
[1761720527727,0.54785932,113400.0,113390.0,0.17638239]
[1761720527728,0.00114485,113400.0,113390.0,0.17638239]
[1761720527936,0.17771169,113400.0,113390.0,0.19164239]
[1761720528136,0.00034485,113400.0,113390.0,0.19164239]
[1761720528365,0.17671169,113400.0,113390.0,0.19164239]
[1761720528570,0.17771169,113400.0,113390.0,0.19164239]
[1761720528769,0.17671169,113400.0,113390.0,0.20368239]
[1761720529280,0.17771169,113400.0,113390.0,0.20368239]
[1761720529490,0.18597992,113400.0,113390.0,0.20368239]
[1761720530556,0.18597992,113400.0,113390.0,0.17638239]
[1761720530773,0.18617992,113400.0,113390.0,0.17638239]
[1761720530987,0.18682587,113400.0,113390.0,0.17638239]
[1761720531191,0.01025903,113400.0,113390.0,0.59825002]
[1761720531403,0.18662587,113400.0,113390.0,0.59825002]
[1761720531832,0.01025903,113400.0,113390.0,0.59825002]
[1761720535822,0.18682587,113400.0,113390.0,0.20368239]
[1761720536744,0.18682587,113400.0,113390.0,0.18842239]
[1761720536962,0.18682587,113400.0,113390.0,0.17638239]
[1761720537202,0.5569735,113400.0,113390.0,0.17638239]
[1761720537411,0.57622304,113400.0,113390.0,0.17638239]
[1761720538211,0.57602304,113400.0,113390.0,0.17638239]
[1761720538591,0.20587541,113400.0,113390.0,0.17638239]
[1761720538789,0.18682587,113400.0,113390.0,0.17638239]
[1761720539038,0.5569735,113400.0,113390.0,0.17638239]
[1761720539277,0.57602304,113400.0,113390.0,0.17638239]
[1761720539642,0.36637734,113400.0,113390.0,0.17638239]
[1761720539816,0.54274418,113400.0,113390.0,0.17638239]
[1761720541230,0.54274418,113400.0,113380.0,0.58300558]
[1761720541458,0.54274418,113400.0,113390.0,0.17638239]
[1761720541888,0.54274418,113400.0,113380.0,0.21285795]
[1761720542088,0.54653002,113390.0,113380.0,0.17639795]
[1761720542309,0.37641351,113370.0,113350.0,0.01204]
[1761720542501,0.5465767,113360.0,113350.0,0.17644235]
[1761720542757,0.01905866,113360.0,113350.0,0.17644235]
[1761720542903,0.46623252,113370.0,113350.0,0.17644235]
[1761720542904,0.85543881,113370.0,113350.0,0.17644235]
[1761720543105,0.15193775,113370.0,113360.0,0.17642907]
[1761720543474,0.03283357,113370.0,113360.0,0.5982967]
[1761720543676,0.03283357,113370.0,113360.0,0.59844155]
[1761720544273,0.23078827,113380.0,113370.0,0.17641351]
[1761720544472,0.6009359,113380.0,113370.0,0.20371351]
[1761720545068,0.6009359,113380.0,113370.0,0.18845351]
[1761720545524,0.04557043,113380.0,113370.0,0.20371351]
[1761720545723,0.20290972,113380.0,113370.0,0.20371351]
[1761720546074,0.17639795,113380.0,113370.0,0.20371351]
[1761720548749,0.17641351,113370.0,113360.0,0.18861392]
[1761720548959,0.54656114,113370.0,113360.0,0.00014485]
[1761720549163,0.85543881,113370.0,113360.0,0.00014485]
[1761720549961,1.56558644,113370.0,113360.0,0.00014485]
[1761720550090,1.19543881,113370.0,113360.0,0.00014485]
[1761720550496,1.21194208,113370.0,113360.0,0.00014485]
[1761720550739,1.21194208,113370.0,113360.0,0.00114485]
[1761720551079,1.19543881,113370.0,113360.0,0.00014485]
[1761720551336,1.19843881,113370.0,113360.0,0.00014485]
[1761720551767,1.20668712,113370.0,113360.0,0.00014485]
[1761720553040,1.20768712,113370.0,113360.0,0.00014485]
[1761720553653,1.2342044,113370.0,113360.0,0.00014485]
[1761720558429,0.86405677,113370.0,113360.0,0.00014485]
[1761720558664,1.2342044,113370.0,113360.0,0.00014485]
[1761720565248,1.25069134,113370.0,113360.0,0.00014485]
[1761720566761,1.28245005,113370.0,113360.0,0.00014485]
[1761720571442,1.28246147,113370.0,113360.0,0.00014485]
[1761720572248,1.33017377,113370.0,113360.0,0.00014485]
[1761720577273,1.29841506,113370.0,113360.0,0.00014485]
[1761720578260,0.17642907,113360.0,113350.0,0.17644424]
[1761720578618,0.73581856,113360.0,113350.0,0.17644464]
[1761720579073,0.73581856,113360.0,113340.0,0.18528311]
[1761720579295,0.02384742,113350.0,113340.0,0.18542799]
[1761720579516,0.05116581,113350.0,113340.0,0.18542799]
[1761720580456,0.05116581,113350.0,113340.0,0.20178799]
[1761720580672,0.05116581,113350.0,113340.0,0.20278799]
[1761720582468,0.05116581,113350.0,113340.0,0.21440799]
[1761720582666,0.05116581,113350.0,113340.0,0.23914799]
[1761720583131,0.12312712,113350.0,113340.0,0.21440799]
[1761720585368,0.0992797,113350.0,113340.0,0.21440799]
[1761720585564,0.12314777,113350.0,113340.0,0.21440799]
[1761720586035,0.12316704,113350.0,113340.0,0.21440799]
[1761720586775,0.30835511,113350.0,113340.0,0.21440799]
[1761720586987,0.30835511,113350.0,113340.0,0.18642799]
[1761720587410,0.28450769,113350.0,113340.0,0.18642799]
[1761720587627,0.96859185,113350.0,113340.0,0.00114488]
[1761720587851,1.01693439,113350.0,113340.0,0.00114488]
[1761720588083,1.04079927,113350.0,113340.0,0.00114488]
[1761720588298,0.99308697,113350.0,113340.0,0.00114488]
[1761720588527,1.04079927,113350.0,113340.0,0.00114488]
[1761720588968,1.04079927,113350.0,113340.0,0.00014488]
[1761720589469,1.40320011,113350.0,113340.0,0.00014488]
[1761720589691,1.42872321,113350.0,113340.0,0.00014488]
[1761720590119,1.43272321,113350.0,113340.0,0.00014488]
[1761720590338,1.41616211,113350.0,113340.0,0.00014488]
[1761720590603,1.43270359,113350.0,113340.0,0.00014488]
[1761720591265,1.46445571,113350.0,113340.0,0.00014488]
[1761720594346,1.41674341,113350.0,113340.0,0.00014488]
[1761720596490,1.98716114,113350.0,113340.0,0.00014488]
[1761720596701,2.03265761,113350.0,113340.0,0.00014488]
[1761720596975,1.98494531,113350.0,113340.0,0.00014488]
[1761720597861,2.03252205,113350.0,113340.0,0.00014488]
[1761720599028,2.08378981,113350.0,113340.0,0.00014488]
[1761720599654,2.0937898,113350.0,113340.0,0.00014488]
[1761720599857,0.1764602,113340.0,113330.0,0.00185217]
[1761720600058,1.11929469,113340.0,113330.0,0.00185217]
[1761720600691,1.14582243,113340.0,113330.0,0.00185217]
[1761720601511,1.43827104,113340.0,113330.0,0.00185217]
[1761720601718,1.55017605,113340.0,113330.0,0.00185217]
[1761720601926,1.6138341,113340.0,113330.0,0.00185217]
[1761720602337,1.61391919,113340.0,113330.0,0.00185217]
[1761720602552,1.61691919,113340.0,113330.0,0.00185217]
[1761720604646,0.17654948,113290.0,113270.0,0.19692781]
[1761720604846,0.19420443,113290.0,113270.0,0.19692781]
[1761720605047,0.19420443,113290.0,113270.0,0.21328781]
[1761720605323,0.01765495,113290.0,113280.0,0.19291367]
[1761720605502,0.2221602,113300.0,113280.0,0.5996914]
[1761720605708,0.18476243,113300.0,113290.0,0.22925808]
[1761720605943,0.18484748,113300.0,113290.0,0.22925808]
[1761720607011,0.18484748,113300.0,113290.0,0.23325808]
[1761720607216,0.05107837,113300.0,113290.0,0.23325808]
[1761720607443,0.18484748,113300.0,113290.0,0.23325808]
[1761720607870,0.18484426,113300.0,113290.0,0.23325808]
[1761720608067,0.00832176,113300.0,113290.0,0.23325808]
[1761720608401,0.18484426,113300.0,113290.0,0.23325808]
[1761720608608,0.22759733,113300.0,113290.0,0.23325808]
[1761720609197,0.22759733,113300.0,113290.0,0.20851808]
[1761720611280,0.00832176,113300.0,113290.0,0.20851808]
[1761720611520,8.505e-05,113300.0,113290.0,0.23153808]
[1761720611763,8.505e-05,113300.0,113290.0,0.25806793]
[1761720612067,8.505e-05,113300.0,113290.0,0.62848566]
[1761720612765,0.37050278,113300.0,113290.0,0.03052985]
[1761720612977,0.2757842,113300.0,113290.0,0.03052985]
[1761720613440,0.0992617,113300.0,113290.0,0.23504793]
[1761720613669,0.00832082,113300.0,113290.0,0.25780793]
[1761720614071,8.505e-05,113300.0,113290.0,0.25780793]
[1761720615339,8.505e-05,113300.0,113290.0,0.62822566]
[1761720615754,8.505e-05,113300.0,113290.0,0.62907261]
[1761720616771,8.505e-05,113300.0,113290.0,0.25865488]
[1761720617596,8.505e-05,113300.0,113290.0,0.62907261]
[1761720619900,8.505e-05,113300.0,113290.0,0.71086218]
[1761720620853,8.505e-05,113300.0,113290.0,0.62907261]
[1761720624402,8.505e-05,113300.0,113290.0,1.05889162]
[1761720639382,8.505e-05,113300.0,113290.0,0.68847389]
[1761720639617,8.505e-05,113300.0,113290.0,0.25865488]
[1761720639845,8.505e-05,113300.0,113290.0,0.23589488]
[1761720640055,0.54702528,113300.0,113290.0,0.23589488]
[1761720640262,0.5742623,113300.0,113290.0,0.20791488]
[1761720640671,0.20384457,113300.0,113290.0,0.20791488]
[1761720640877,0.184865,113300.0,113290.0,0.20791488]